[Event "NJSK 2018 Jeugd C"]
[Site "Assen, Netherlands"]
[Date "2018.05.02"]
[Round "5.3"]
[White "Nguyen, Lucas"]
[Black "Pham, Khoi"]
[Result "0-1"]
[TimeControl "40/90m+30sec/move"]
[WhiteElo "1919"]
[BlackElo "1983"]

1. e4 {[%clk 01:30:56]} {[%emt 00:00:02]} c5 {[%clk 01:30:52]} {[%emt
00:00:09]} 2. Nf3 {[%clk 01:31:23]} {[%emt 00:00:04]} d6 {[%clk 01:31:12]}
{[%emt 00:00:09]} 3. d4 {[%clk 01:31:48]} {[%emt 00:00:04]} cxd4 {[%clk
01:31:36]} {[%emt 00:00:07]} 4. Nxd4 {[%clk 01:32:16]} {[%emt 00:00:03]} Nf6
{[%clk 01:31:56]} {[%emt 00:00:09]} 5. Nc3 {[%clk 01:32:40]} {[%emt 00:00:07]}
a6 {[%clk 01:32:18]} {[%emt 00:00:08]} 6. f3 {[%clk 01:33:00]} {[%emt
00:00:09]} e6 {[%clk 01:32:39]} {[%emt 00:00:09]} 7. Be3 {[%clk 01:33:16]}
{[%emt 00:00:14]} b5 {[%clk 01:33:02]} {[%emt 00:00:08]} 8. Qd2 {[%clk
01:32:53]} {[%emt 00:00:53]} Nbd7 {[%clk 01:33:25]} {[%emt 00:00:07]} 9. g4
{[%clk 01:31:28]} {[%emt 00:01:55]} Nb6 {[%clk 01:32:10]} {[%emt 00:01:46]} 10.
h4 {[%clk 01:30:53]} {[%emt 00:01:04]} Bb7 {[%clk 01:30:39]} {[%emt 00:02:02]}
11. Qf2 {[%clk 01:19:44]} {[%emt 00:11:37]} Nfd7 {[%clk 01:30:02]} {[%emt
00:01:08]} 12. a4 {[%clk 01:17:37]} {[%emt 00:02:38]} b4 {[%clk 01:18:07]}
{[%emt 00:12:25]} 13. Na2 {[%clk 01:11:11]} {[%emt 00:06:55]} d5 {[%clk
01:16:09]} {[%emt 00:02:28]} 14. exd5 {[%clk 01:10:03]} {[%emt 00:01:39]} Nxd5
{[%clk 01:15:32]} {[%emt 00:01:07]} 15. Bg5 {[%clk 01:00:36]} {[%emt 00:09:57]}
Qc7 {[%clk 01:11:00]} {[%emt 00:05:03]} 16. O-O-O {[%clk 00:56:07]} {[%emt
00:04:59]} Bd6 {[%clk 01:09:13]} {[%emt 00:02:17]} 17. Kb1 {[%clk 00:54:37]}
{[%emt 00:01:59]} Rc8 {[%clk 01:03:31]} {[%emt 00:06:13]} 18. Nb3 {[%clk
00:51:11]} {[%emt 00:03:55]} O-O {[%clk 00:58:02]} {[%emt 00:06:00]} 19. Bd3
{[%clk 00:49:14]} {[%emt 00:02:26]} Nc5 {[%clk 00:49:18]} {[%emt 00:09:16]} 20.
Nxc5 {[%clk 00:47:53]} {[%emt 00:01:51]} Bxc5 {[%clk 00:49:13]} {[%emt
00:00:35]} 21. Qe2 {[%clk 00:48:07]} {[%emt 00:00:15]} Bc6 {[%clk 00:32:51]}
{[%emt 00:16:53]} 22. b3 {[%clk 00:40:39]} {[%emt 00:07:58]} Rb8 {[%clk
00:29:30]} {[%emt 00:03:51]} 23. Bd2 {[%clk 00:36:56]} {[%emt 00:04:12]} Bxa4
{[%clk 00:23:07]} {[%emt 00:06:53]} 24. bxa4 {[%clk 00:24:45]} {[%emt
00:10:38]} b3 {[%clk 00:12:14]} {[%emt 00:13:26]} 25. Bc4 {[%clk 00:23:10]}
{[%emt 00:02:04]} bxa2+ {[%clk 00:11:41]} {[%emt 00:01:03]} 26. Kxa2 {[%clk
00:23:35]} {[%emt 00:00:05]} Qc6 {[%clk 00:11:11]} {[%emt 00:01:00]} 27. Bb3
{[%clk 00:23:49]} {[%emt 00:00:16]} Bb4 {[%clk 00:10:42]} {[%emt 00:00:59]} 28.
Qc4 {[%clk 00:21:51]} {[%emt 00:02:28]} Qb6 {[%clk 00:08:46]} {[%emt 00:02:27]}
29. Bxb4 {[%clk 00:17:37]} {[%emt 00:04:43]} Nxb4+ {[%clk 00:09:07]} {[%emt
00:00:10]} 30. Ka1 {[%clk 00:14:44]} {[%emt 00:03:22]} Rfc8 {[%clk 00:09:26]}
{[%emt 00:00:10]} 31. Qd4 {[%clk 00:14:45]} {[%emt 00:00:30]} Qc6 {[%clk
00:07:25]} {[%emt 00:02:32]} 32. Rd2 {[%clk 00:12:22]} {[%emt 00:02:53]} Qxf3
{[%clk 00:07:16]} {[%emt 00:00:38]} 33. Rhd1 {[%clk 00:12:22]} {[%emt
00:00:31]} h6 {[%clk 00:06:30]} {[%emt 00:01:16]} 34. Rf2 {[%clk 00:09:33]}
{[%emt 00:03:19]} Nxc2+ {[%clk 00:06:00]} {[%emt 00:01:01]} 35. Rxc2 {[%clk
00:09:08]} {[%emt 00:00:54]} Rxc2 {[%clk 00:05:44]} {[%emt 00:00:46]} 36. Rd3
{[%clk 00:04:18]} {[%emt 00:05:20]} Rc1+ {[%clk 00:05:16]} {[%emt 00:00:59]} 37.
Kb2 {[%clk 00:04:34]} {[%emt 00:00:14]} Qf1 {[%clk 00:05:33]} {[%emt 00:00:12]}
38. Ka2 {[%clk 00:04:13]} {[%emt 00:00:52]} Ra1+ {[%clk 00:05:20]} {[%emt
00:00:42]} 39. Qxa1 {[%clk 00:04:35]} {[%emt 00:00:08]} Qxd3 {[%clk 00:05:47]}
{[%emt 00:00:03]} 40. Qb2 {[%clk 00:04:50]} {[%emt 00:00:15]} Qxb3+ {[%clk
00:04:46]} {[%emt 00:01:31]} 41. Qxb3 {[%clk 00:05:19]} {[%emt 00:00:01]} Rxb3
{[%clk 00:05:08]} {[%emt 00:00:08]} 42. Kxb3 {[%clk 00:05:46]} {[%emt
00:00:03]} f5 {[%clk 00:05:32]} {[%emt 00:00:06]} 43. gxf5 {[%clk 00:05:39]}
{[%emt 00:00:37]} exf5 {[%clk 00:05:57]} {[%emt 00:00:04]} 0-1

[Event "NJSK 2018 Jeugd C"]
[Site "Assen, Netherlands"]
[Date "2018.05.02"]
[Round "5.4"]
[White "Boghossian, Wahe"]
[Black "Maters, Arthur"]
[Result "1-0"]
[TimeControl "40/90m+30sec/move"]
[WhiteElo "1748"]
[BlackElo "1895"]

1. e4 {[%clk 01:30:56]} {[%emt 00:00:03]} c5 {[%clk 01:30:57]} {[%emt
00:00:04]} 2. Nf3 {[%clk 01:31:21]} {[%emt 00:00:04]} d6 {[%clk 01:31:22]}
{[%emt 00:00:05]} 3. d4 {[%clk 01:31:46]} {[%emt 00:00:05]} cxd4 {[%clk
01:31:48]} {[%emt 00:00:04]} 4. Nxd4 {[%clk 01:32:12]} {[%emt 00:00:05]} Nf6
{[%clk 01:32:12]} {[%emt 00:00:06]} 5. Nc3 {[%clk 01:32:33]} {[%emt 00:00:09]}
a6 {[%clk 01:32:35]} {[%emt 00:00:07]} 6. Be3 {[%clk 01:32:23]} {[%emt
00:00:40]} e5 {[%clk 01:33:00]} {[%emt 00:00:06]} 7. Nb3 {[%clk 01:32:32]}
{[%emt 00:00:20]} Be6 {[%clk 01:33:26]} {[%emt 00:00:04]} 8. f3 {[%clk
01:31:57]} {[%emt 00:01:04]} h5 {[%clk 01:33:33]} {[%emt 00:00:23]} 9. Qd2
{[%clk 01:22:32]} {[%emt 00:09:55]} Nbd7 {[%clk 01:33:53]} {[%emt 00:00:10]} 10.
Rd1 {[%clk 01:19:57]} {[%emt 00:03:05]} Rc8 {[%clk 01:29:40]} {[%emt 00:04:43]}
11. Be2 {[%clk 01:18:42]} {[%emt 00:01:44]} b5 {[%clk 01:23:03]} {[%emt
00:07:08]} 12. O-O {[%clk 00:51:41]} {[%emt 00:27:31]} b4 {[%clk 01:09:07]}
{[%emt 00:14:26]} 13. Nd5 {[%clk 00:50:08]} {[%emt 00:02:03]} Bxd5 {[%clk
01:08:16]} {[%emt 00:01:22]} 14. exd5 {[%clk 00:50:27]} {[%emt 00:00:10]} a5
{[%clk 01:06:08]} {[%emt 00:02:38]} 15. Bb5 {[%clk 00:49:02]} {[%emt 00:01:55]}
Be7 {[%clk 01:02:17]} {[%emt 00:04:21]} 16. a3 {[%clk 00:42:41]} {[%emt
00:06:52]} O-O {[%clk 00:59:54]} {[%emt 00:02:52]} 17. axb4 {[%clk 00:41:38]}
{[%emt 00:01:34]} axb4 {[%clk 00:59:46]} {[%emt 00:00:39]} 18. Bc6 {[%clk
00:35:22]} {[%emt 00:06:45]} Nb8 {[%clk 00:56:27]} {[%emt 00:03:49]} 19. Bb7
{[%clk 00:34:34]} {[%emt 00:01:18]} Rc7 {[%clk 00:56:17]} {[%emt 00:00:39]} 20.
Bb6 {[%clk 00:34:20]} {[%emt 00:00:44]} Nbd7 {[%clk 00:52:03]} {[%emt
00:04:44]} 21. Bxc7 Qxc7 {[%clk 00:52:32]} 22. Bc6 {[%clk 00:33:27]} {[%emt
00:00:44]} Nb8 {[%clk 00:48:20]} {[%emt 00:04:42]} 23. Qxb4 {[%clk 00:30:28]}
{[%emt 00:03:28]} Nxc6 {[%clk 00:48:44]} {[%emt 00:00:06]} 24. dxc6 {[%clk
00:30:51]} {[%emt 00:00:07]} Qxc6 {[%clk 00:49:08]} {[%emt 00:00:06]} 25. Na5
{[%clk 00:27:33]} {[%emt 00:03:48]} Qc7 {[%clk 00:48:07]} {[%emt 00:01:31]} 26.
Qc3 {[%clk 00:23:25]} {[%emt 00:04:38]} Qb6+ {[%clk 00:45:28]} {[%emt
00:03:09]} 27. Kh1 {[%clk 00:23:33]} {[%emt 00:00:20]} d5 {[%clk 00:39:04]}
{[%emt 00:06:56]} 28. Nc6 {[%clk 00:21:08]} {[%emt 00:02:55]} Bd6 {[%clk
00:39:28]} {[%emt 00:00:06]} 29. Nxe5 {[%clk 00:20:52]} {[%emt 00:00:46]} d4
{[%clk 00:39:13]} {[%emt 00:00:45]} 30. Qc6 {[%clk 00:13:57]} {[%emt 00:07:22]}
Qb8 {[%clk 00:37:47]} {[%emt 00:01:58]} 31. f4 {[%clk 00:14:04]} {[%emt
00:00:23]} Rc8 {[%clk 00:35:43]} {[%emt 00:02:34]} 32. Qa4 {[%clk 00:12:48]}
{[%emt 00:01:40]} Qxb2 {[%clk 00:28:12]} {[%emt 00:08:07]} 33. Qxd4 {[%clk
00:12:22]} {[%emt 00:00:56]} Qxd4 {[%clk 00:28:33]} {[%emt 00:00:09]} 34. Rxd4
{[%clk 00:12:44]} {[%emt 00:00:08]} Bxe5 {[%clk 00:28:55]} {[%emt 00:00:09]} 35.
fxe5 {[%clk 00:13:07]} {[%emt 00:00:07]} Ng4 {[%clk 00:29:20]} {[%emt
00:00:05]} 36. h3 {[%clk 00:09:56]} {[%emt 00:03:39]} Ne3 {[%clk 00:24:42]}
{[%emt 00:05:10]} 37. Rc1 {[%clk 00:07:54]} {[%emt 00:02:31]} Rxc2 {[%clk
00:24:58]} {[%emt 00:00:15]} 38. Rxc2 {[%clk 00:07:58]} {[%emt 00:00:26]} Nxc2
{[%clk 00:25:21]} {[%emt 00:00:06]} 39. Rd8+ {[%clk 00:07:11]} {[%emt
00:01:18]} Kh7 {[%clk 00:25:43]} {[%emt 00:00:08]} 40. Rd7 {[%clk 00:07:07]}
{[%emt 00:00:34]} Kg6 {[%clk 00:25:05]} {[%emt 00:01:08]} 41. Kh2 {[%clk
00:06:49]} {[%emt 00:00:48]} Ne3 {[%clk 00:23:58]} {[%emt 00:01:35]} 42. Kg3
{[%clk 00:06:26]} {[%emt 00:00:54]} Nf5+ {[%clk 00:19:51]} {[%emt 00:04:38]} 43.
Kf4 {[%clk 00:05:53]} {[%emt 00:01:03]} Nh4 {[%clk 00:09:10]} {[%emt 00:11:11]}
44. Rd6+ {[%clk 00:04:04]} {[%emt 00:02:19]} Kh7 {[%clk 00:08:56]} {[%emt
00:00:43]} 45. g3 {[%clk 00:03:57]} {[%emt 00:00:38]} Ng6+ {[%clk 00:08:59]}
{[%emt 00:00:27]} 46. Kf5 {[%clk 00:03:43]} {[%emt 00:00:44]} Ne7+ {[%clk
00:04:25]} {[%emt 00:05:05]} 47. Kg5 {[%clk 00:04:01]} {[%emt 00:00:11]} g6
{[%clk 00:03:34]} {[%emt 00:01:23]} 48. Kf6 {[%clk 00:04:17]} {[%emt 00:00:13]}
Nf5 {[%clk 00:04:02]} {[%emt 00:00:02]} 49. Kxf7 {[%clk 00:04:26]} {[%emt
00:00:21]} Nxg3 {[%clk 00:04:16]} {[%emt 00:00:16]} 50. Rxg6 {[%clk 00:04:39]}
{[%emt 00:00:17]} Ne4 {[%clk 00:03:52]} {[%emt 00:00:53]} 51. Rg1 {[%clk
00:04:21]} {[%emt 00:00:47]} h4 {[%clk 00:04:17]} {[%emt 00:00:06]} 52. Rg4
{[%clk 00:04:34]} {[%emt 00:00:17]} Nd6+ {[%emt 00:00:13]} 1-0

[Event "NJSK 2018 Jeugd C"]
[Site "Assen, Netherlands"]
[Date "2018.05.02"]
[Round "5.5"]
[White "Brandsma, Romayn"]
[Black "Klaren, Duncan"]
[Result "1-0"]
[TimeControl "40/90m+30sec/move"]
[WhiteElo "1715"]
[BlackElo "1713"]

1. e4 {[%clk 01:30:58]} c5 {[%clk 01:30:55]} {[%emt 00:00:06]} 2. c3 {[%clk
01:31:22]} {[%emt 00:00:06]} Nf6 {[%emt 00:00:23]} 3. e5 Nd5 4. g3 Nc6 5. Bg2
e6 6. Nf3 Qc7 7. Qe2 Be7 8. O-O O-O 9. d4 cxd4 10. cxd4 d6 {[%clk 01:31:01]} 11.
Bd2 {[%clk 01:23:50]} {[%emt 00:20:36]} Rd8 {[%clk 01:23:41]} {[%emt 00:03:17]}
12. Nc3 {[%clk 01:23:38]} {[%emt 00:00:42]} Qb6 {[%clk 01:16:29]} {[%emt
00:07:42]} 13. Nxd5 {[%clk 01:21:29]} {[%emt 00:02:38]} exd5 {[%clk 01:16:44]}
{[%emt 00:00:15]} 14. Ng5 {[%clk 01:04:49]} {[%emt 00:17:09]} Be6 {[%clk
00:47:39]} {[%emt 00:29:36]} 15. Nxe6 {[%clk 01:03:39]} {[%emt 00:01:40]} fxe6
{[%clk 00:48:00]} {[%emt 00:00:09]} 16. exd6 {[%clk 01:04:00]} {[%emt
00:00:09]} Nxd4 {[%clk 00:47:00]} {[%emt 00:01:30]} 17. Qg4 {[%clk 01:03:40]}
{[%emt 00:00:50]} Bxd6 {[%clk 00:37:52]} {[%emt 00:09:38]} 18. Be3 {[%clk
01:03:46]} {[%emt 00:00:24]} Bc5 {[%clk 00:35:34]} {[%emt 00:02:48]} 19. Rac1
{[%clk 01:01:32]} {[%emt 00:02:43]} e5 {[%clk 00:32:53]} {[%emt 00:03:12]} 20.
Rfd1 {[%clk 00:59:07]} {[%emt 00:02:54]} Rac8 {[%clk 00:25:24]} {[%emt
00:08:00]} 21. Bxd5+ {[%clk 00:57:48]} {[%emt 00:01:49]} Kh8 {[%clk 00:25:29]}
{[%emt 00:00:25]} 22. Bxd4 {[%clk 00:57:49]} {[%emt 00:00:29]} exd4 {[%clk
00:25:24]} {[%emt 00:00:35]} 23. Be4 {[%clk 00:52:57]} {[%emt 00:05:21]} Qh6
{[%clk 00:17:32]} {[%emt 00:08:21]} 24. b4 {[%clk 00:53:02]} {[%emt 00:00:26]}
d3 {[%clk 00:16:01]} {[%emt 00:02:02]} 25. Rxc5 {[%clk 00:52:32]} {[%emt
00:01:00]} Rxc5 {[%clk 00:16:08]} {[%emt 00:00:23]} 26. bxc5 {[%clk 00:52:54]}
{[%emt 00:00:08]} d2 {[%clk 00:13:41]} {[%emt 00:02:57]} 27. Bxb7 {[%clk
00:51:40]} {[%emt 00:01:45]} Qf6 {[%clk 00:08:53]} {[%emt 00:05:17]} 28. Qh4
{[%clk 00:46:49]} {[%emt 00:05:20]} g5 {[%clk 00:07:58]} {[%emt 00:01:26]} 29.
Qe4 {[%clk 00:44:47]} {[%emt 00:02:26]} Rd4 {[%clk 00:07:07]} {[%emt 00:01:27]}
30. Qe2 {[%clk 00:43:59]} {[%emt 00:01:15]} Qg6 {[%clk 00:05:33]} {[%emt
00:02:05]} 31. Qe5 {[%clk 00:43:04]} {[%emt 00:01:25]} Qg7 {[%clk 00:05:54]}
{[%emt 00:00:10]} 32. Qxg7 {[%clk 00:43:25]} {[%emt 00:00:09]} Kxg7 {[%clk
00:06:22]} {[%emt 00:00:02]} 33. c6 {[%clk 00:43:39]} {[%emt 00:00:15]} 1-0

[Event "NJSK 2018 Jeugd C"]
[Site "Assen, Netherlands"]
[Date "2018.05.02"]
[Round "5.6"]
[White "Van der Hagen, Loek"]
[Black "Bartels, Vladimir"]
[Result "1-0"]
[TimeControl "40/90m+30sec/move"]
[WhiteElo "1815"]
[BlackElo "1757"]

1. e4 {[%clk 01:30:59]} e5 {[%clk 01:30:56]} {[%emt 00:00:05]} 2. Nf3 {[%clk
01:31:26]} {[%emt 00:00:02]} Nc6 {[%clk 01:31:20]} {[%emt 00:00:06]} 3. Bb5
{[%clk 01:31:51]} {[%emt 00:00:04]} a6 {[%clk 01:31:45]} {[%emt 00:00:06]} 4.
Ba4 {[%clk 01:32:17]} {[%emt 00:00:03]} Nf6 {[%clk 01:32:05]} {[%emt 00:00:10]}
5. O-O {[%clk 01:32:42]} {[%emt 00:00:05]} Be7 {[%clk 01:32:25]} {[%emt
00:00:11]} 6. Re1 {[%clk 01:33:02]} {[%emt 00:00:10]} b5 {[%clk 01:32:28]}
{[%emt 00:00:27]} 7. Bb3 {[%clk 01:33:26]} {[%emt 00:00:06]} d6 {[%clk
01:32:50]} {[%emt 00:00:08]} 8. c3 {[%clk 01:33:48]} {[%emt 00:00:08]} O-O
{[%clk 01:33:08]} {[%emt 00:00:11]} 9. h3 {[%clk 01:34:11]} {[%emt 00:00:07]}
Nb8 {[%clk 01:33:20]} {[%emt 00:00:19]} 10. d4 {[%clk 01:34:10]} {[%emt
00:00:32]} Nbd7 {[%clk 01:33:32]} {[%emt 00:00:17]} 11. Nbd2 {[%clk 01:34:21]}
{[%emt 00:00:19]} Bb7 {[%clk 01:33:13]} {[%emt 00:00:49]} 12. Bc2 {[%clk
01:34:23]} {[%emt 00:00:28]} Re8 {[%clk 01:33:29]} {[%emt 00:00:14]} 13. Nf1
{[%clk 01:34:42]} {[%emt 00:00:10]} Bf8 {[%clk 01:33:28]} {[%emt 00:00:32]} 14.
Ng3 {[%clk 01:35:05]} {[%emt 00:00:06]} g6 {[%clk 01:33:51]} {[%emt 00:00:08]}
15. Nh2 {[%clk 01:22:22]} {[%emt 00:13:13]} c5 {[%clk 01:22:31]} {[%emt
00:11:50]} 16. Kh1 {[%clk 01:17:12]} {[%emt 00:05:40]} Bg7 {[%clk 01:21:04]}
{[%emt 00:01:56]} 17. d5 {[%clk 01:06:38]} {[%emt 00:11:04]} c4 {[%clk
01:18:32]} {[%emt 00:03:03]} 18. Be3 {[%clk 01:04:48]} {[%emt 00:02:19]} Qc7
{[%clk 01:15:12]} {[%emt 00:03:50]} 19. f4 {[%clk 01:00:04]} {[%emt 00:05:14]}
Rad8 {[%clk 01:11:18]} {[%emt 00:04:24]} 20. f5 {[%clk 00:57:47]} {[%emt
00:02:47]} Nc5 {[%clk 01:08:02]} {[%emt 00:03:45]} 21. Qc1 {[%clk 00:52:39]}
{[%emt 00:05:38]} Qe7 {[%clk 01:03:15]} {[%emt 00:05:18]} 22. a4 {[%clk
00:48:06]} {[%emt 00:05:04]} Ra8 {[%clk 01:00:14]} {[%emt 00:03:29]} 23. Bxc5
{[%clk 00:43:48]} {[%emt 00:04:49]} dxc5 {[%clk 01:00:37]} {[%emt 00:00:07]} 24.
Qe3 {[%clk 00:42:46]} {[%emt 00:01:32]} b4 {[%clk 00:57:37]} {[%emt 00:03:31]}
25. b3 {[%clk 00:40:32]} {[%emt 00:02:44]} cxb3 {[%clk 00:55:12]} {[%emt
00:02:54]} 26. Bxb3 {[%clk 00:40:55]} {[%emt 00:00:07]} a5 {[%clk 00:54:29]}
{[%emt 00:01:13]} 27. Rac1 {[%clk 00:38:44]} {[%emt 00:02:41]} Rac8 {[%clk
00:53:13]} {[%emt 00:01:45]} 28. cxb4 {[%clk 00:38:21]} {[%emt 00:00:54]} cxb4
{[%clk 00:53:21]} {[%emt 00:00:22]} 29. Qb6 {[%clk 00:38:08]} {[%emt 00:00:43]}
Bh6 {[%clk 00:45:41]} {[%emt 00:08:11]} 30. Rc4 {[%clk 00:33:34]} {[%emt
00:05:04]} Rxc4 {[%clk 00:45:20]} {[%emt 00:00:51]} 31. Bxc4 {[%clk 00:33:59]}
{[%emt 00:00:06]} Rc8 {[%clk 00:45:45]} {[%emt 00:00:04]} 32. Bb5 {[%emt
00:05:25]} Qc7 {[%clk 00:41:08]} {[%emt 00:00:02]} 33. Qxf6 {[%clk 00:25:34]}
{[%emt 00:09:04]} Qc3 {[%clk 00:35:00]} {[%emt 00:06:39]} 34. Nf3 {[%clk
00:24:48]} {[%emt 00:01:16]} Be3 {[%clk 00:12:13]} {[%emt 00:23:16]} 35. Ne2
{[%clk 00:16:42]} {[%emt 00:08:37]} Qc7 {[%clk 00:09:18]} {[%emt 00:03:25]} 36.
Qxe5 {[%clk 00:15:52]} {[%emt 00:01:21]} Qxe5 {[%clk 00:08:55]} {[%emt
00:00:53]} 37. Nxe5 {[%clk 00:16:14]} {[%emt 00:00:08]} b3 {[%clk 00:09:20]}
{[%emt 00:00:04]} 38. Rb1 {[%clk 00:15:03]} {[%emt 00:01:40]} 1-0

[Event "NJSK 2018 Jeugd C"]
[Site "Assen, Netherlands"]
[Date "2018.05.02"]
[Round "5.7"]
[White "Van Foreest, Nanne"]
[Black "Bleeker, Kasper"]
[Result "1/2-1/2"]
[TimeControl "40/90m+30sec/move"]
[WhiteElo "1482"]
[BlackElo "1737"]

1. e4 {[%clk 01:30:55]} {[%emt 00:00:01]} e5 {[%clk 01:29:39]} {[%emt
00:01:22]} 2. Nf3 {[%clk 01:31:19]} {[%emt 00:00:06]} Nc6 {[%clk 01:29:45]}
{[%emt 00:00:24]} 3. Bc4 {[%clk 01:31:44]} {[%emt 00:00:05]} Nf6 {[%clk
01:30:10]} {[%emt 00:00:05]} 4. Ng5 {[%clk 01:32:11]} {[%emt 00:00:03]} d5
{[%clk 01:30:31]} {[%emt 00:00:09]} 5. exd5 {[%clk 01:32:37]} {[%emt 00:00:04]}
Na5 {[%clk 01:30:41]} {[%emt 00:00:20]} 6. Bb5+ {[%clk 01:33:02]} {[%emt
00:00:05]} c6 {[%clk 01:30:59]} {[%emt 00:00:12]} 7. dxc6 {[%clk 01:33:28]}
{[%emt 00:00:05]} bxc6 {[%clk 01:31:24]} {[%emt 00:00:06]} 8. Qf3 {[%clk
01:33:51]} {[%emt 00:00:07]} Bb7 {[%clk 01:27:20]} {[%emt 00:04:33]} 9. Bd3
{[%clk 01:34:07]} {[%emt 00:00:14]} c5 {[%clk 01:21:17]} {[%emt 00:06:34]} 10.
Bb5+ {[%clk 01:34:31]} {[%emt 00:00:06]} Ke7 {[%clk 01:16:49]} {[%emt
00:04:57]} 11. Qc3 {[%clk 01:34:18]} {[%emt 00:00:44]} Qc7 {[%clk 01:14:04]}
{[%emt 00:03:15]} 12. O-O {[%clk 01:34:12]} {[%emt 00:00:36]} Nd5 {[%clk
01:08:02]} {[%emt 00:06:32]} 13. Qa3 {[%clk 01:31:59]} {[%emt 00:02:42]} f6
{[%clk 01:05:08]} {[%emt 00:03:25]} 14. Ne4 {[%clk 01:31:18]} {[%emt 00:01:11]}
Kf7 {[%clk 01:04:00]} {[%emt 00:01:38]} 15. Qh3 {[%clk 01:27:31]} {[%emt
00:04:17]} Nf4 {[%clk 01:02:31]} {[%emt 00:02:00]} 16. Qe3 {[%clk 01:21:46]}
{[%emt 00:06:15]} a6 {[%clk 01:01:07]} {[%emt 00:01:54]} 17. Ba4 {[%clk
01:20:55]} {[%emt 00:01:20]} g6 {[%clk 00:51:08]} {[%emt 00:10:27]} 18. g3
{[%clk 01:19:47]} {[%emt 00:01:40]} 1/2-1/2

[Event "NJSK 2018 Jeugd C"]
[Site "Assen, Netherlands"]
[Date "2018.05.02"]
[Round "5.8"]
[White "Cchung, Nyuk Lyn"]
[Black "Catalan, Ciro"]
[Result "1/2-1/2"]
[TimeControl "40/90m+30sec/move"]
[WhiteElo "1796"]
[BlackElo "1503"]

1. e4 {[%clk 01:30:55]} {[%emt 00:00:03]} c5 {[%clk 01:30:59]} {[%emt
00:00:03]} 2. Nf3 {[%clk 01:31:16]} {[%emt 00:00:08]} d6 {[%clk 01:31:17]}
{[%emt 00:00:12]} 3. d4 {[%clk 01:31:39]} {[%emt 00:00:06]} cxd4 {[%clk
01:31:45]} {[%emt 00:00:03]} 4. Nxd4 {[%clk 01:32:01]} {[%emt 00:00:07]} Nf6
{[%clk 01:32:11]} {[%emt 00:00:04]} 5. Nc3 {[%clk 01:32:23]} {[%emt 00:00:08]}
a6 {[%clk 01:32:38]} {[%emt 00:00:03]} 6. Bg5 {[%clk 01:32:43]} {[%emt
00:00:09]} e6 {[%clk 01:33:03]} {[%emt 00:00:07]} 7. f4 {[%clk 01:33:07]}
{[%emt 00:00:05]} b5 {[%clk 01:33:18]} {[%emt 00:00:16]} 8. e5 {[%clk
01:24:45]} {[%emt 00:08:52]} dxe5 {[%clk 01:33:34]} {[%emt 00:00:14]} 9. fxe5
{[%clk 01:25:07]} {[%emt 00:00:07]} Qc7 {[%clk 01:34:00]} {[%emt 00:00:04]} 10.
Qe2 {[%clk 01:25:25]} {[%emt 00:00:13]} Nfd7 {[%clk 01:33:57]} {[%emt
00:00:33]} 11. O-O-O {[%clk 00:48:04]} {[%emt 00:37:51]} Bb7 {[%clk 01:27:43]}
{[%emt 00:06:44]} 12. Qh5 {[%clk 00:32:29]} {[%emt 00:16:03]} Qxe5 {[%clk
01:06:00]} {[%emt 00:22:14]} 13. Bxb5 {[%clk 00:31:01]} {[%emt 00:01:58]} axb5
{[%clk 00:53:17]} {[%emt 00:13:13]} 14. Rhe1 {[%clk 00:22:24]} {[%emt
00:09:06]} g6 {[%clk 00:47:05]} {[%emt 00:06:42]} 15. Qg4 {[%clk 00:14:28]}
{[%emt 00:08:25]} h5 {[%clk 00:40:23]} {[%emt 00:07:12]} 16. Qh4 {[%clk
00:14:12]} {[%emt 00:00:47]} Qxg5+ {[%clk 00:29:51]} {[%emt 00:11:02]} 17. Qxg5
{[%clk 00:14:09]} {[%emt 00:00:32]} Bh6 {[%clk 00:29:59]} {[%emt 00:00:23]} 18.
Qxh6 {[%clk 00:12:39]} {[%emt 00:02:00]} Rxh6 {[%clk 00:30:26]} {[%emt
00:00:03]} 19. Ndxb5 {[%clk 00:12:39]} {[%emt 00:00:29]} Ke7 {[%clk 00:19:47]}
{[%emt 00:11:03]} 20. Rd2 {[%clk 00:06:24]} {[%emt 00:06:51]} Na6 {[%clk
00:14:56]} {[%emt 00:05:22]} 21. Nd6 {[%clk 00:05:38]} {[%emt 00:01:16]} Bc6
{[%clk 00:13:42]} {[%emt 00:01:43]} 22. Nce4 {[%clk 00:04:48]} {[%emt
00:01:21]} Bxe4 {[%clk 00:10:18]} {[%emt 00:03:55]} 23. Rxe4 {[%clk 00:05:16]}
{[%emt 00:00:02]} Nac5 {[%clk 00:10:18]} {[%emt 00:00:29]} 24. Rf4 {[%clk
00:05:08]} {[%emt 00:00:38]} f6 {[%clk 00:09:24]} {[%emt 00:01:25]} 25. b4
{[%clk 00:05:00]} {[%emt 00:00:38]} Na6 {[%clk 00:08:07]} {[%emt 00:01:44]} 26.
a3 {[%clk 00:05:13]} {[%emt 00:00:19]} Rhh8 {[%clk 00:07:02]} {[%emt 00:01:35]}
27. Nc4 {[%clk 00:05:14]} {[%emt 00:00:29]} Nc7 {[%clk 00:06:27]} {[%emt
00:01:03]} 28. Na5 {[%clk 00:04:28]} {[%emt 00:01:18]} Ne5 {[%clk 00:05:57]}
{[%emt 00:00:57]} 29. Rdf2 {[%clk 00:04:12]} {[%emt 00:00:48]} Nd5 {[%clk
00:05:49]} {[%emt 00:00:39]} 30. Rd4 {[%clk 00:04:22]} {[%emt 00:00:19]} Nc3
{[%clk 00:04:55]} {[%emt 00:01:16]} 31. Kb2 {[%clk 00:04:02]} {[%emt 00:00:59]}
Rhc8 {[%clk 00:04:43]} {[%emt 00:00:40]} 32. Kb3 {[%clk 00:03:57]} {[%emt
00:00:36]} Nb5 {[%clk 00:04:32]} {[%emt 00:00:39]} 33. Rdf4 {[%clk 00:04:07]}
{[%emt 00:00:23]} f5 {[%clk 00:03:39]} {[%emt 00:01:23]} 34. Re2 {[%clk
00:03:32]} {[%emt 00:01:05]} Nd7 {[%clk 00:03:35]} {[%emt 00:00:30]} 35. c4
{[%clk 00:03:32]} {[%emt 00:00:34]} Nd6 {[%clk 00:02:41]} {[%emt 00:01:22]} 36.
Rd4 {[%clk 00:03:51]} {[%emt 00:00:11]} Ne4 {[%clk 00:02:46]} {[%emt 00:00:26]}
37. h3 {[%clk 00:03:50]} {[%emt 00:00:31]} Ne5 {[%clk 00:02:29]} {[%emt
00:00:46]} 38. Re1 {[%clk 00:02:25]} {[%emt 00:01:56]} Rd8 {[%clk 00:01:46]}
{[%emt 00:01:12]} 39. Red1 {[%clk 00:02:16]} {[%emt 00:00:41]} Nf2 {[%clk
00:01:49]} {[%emt 00:00:27]} 40. R1d2 {[%clk 00:02:17]} {[%emt 00:00:29]} Ne4
{[%clk 00:01:55]} {[%emt 00:00:24]} 1/2-1/2